Cogmind - Beta 17.1 @@@ ROGUE MODE // 2026.09.03 @ 19:21:37 Player: ATOM Result: Destroyed by as-14570 with Assembled F-torch Performance ------------- Evolutions (0) 0 Regions Visited (2) 400 Robots Destroyed (31) 155 Value Destroyed (612) 612 Prototype IDs (2) 40 Alien Tech Used (0) 0 Bonus (0) 0 TOTAL SCORE: 1207 Bonus ------- None Cogmind --------- Core Integrity 0/250 Matter 294/300 Energy 234/250 System Corruption 1% Temperature Cool (20) Movement Rolling (95) Ox1 Location -10/Mines Parts ------- > --- POWER (1) -------- Ion Engine > --- PROPULSION (2) --- Wheel Wheel > --- UTILITY (2) ------ Heat Sink Large Storage Unit > --- WEAPON (2) ------- Beam Cannon Slug Cannon > --- INVENTORY (15) --- Ion Engine Ion Engine Ion Engine Wheel Compact Wheel High-capacity Storage Unit Sensor Array Faulty Experimental Sensor Array Signal Interpreter Propulsion Shielding Hacking Suite Light Assault Rifle Light Assault Rifle Hammer Peak State ------------ > --- POWER ------------ Ion Engine > --- PROPULSION ------- Wheel Compact Wheel > --- UTILITY ---------- Heat Sink Large Storage Unit > --- WEAPON ----------- Beam Cannon Slug Cannon > --- INVENTORY -------- Ion Engine Ion Engine Ion Engine Wheel High-capacity Storage Unit Sensor Array Experimental Sensor Array Signal Interpreter Propulsion Shielding Hacking Suite Beam Cannon Light Assault Rifle Light Assault Rifle Hammer [Rating: 12] Favorites ----------- Power Ion Engine Engine Ion Engine Propulsion Light Treads Treads Light Treads Wheel Wheel Utility Large Storage Unit Device Improved Heat Sink Storage Large Storage Unit Protection Backup Plating I Weapon Assault Rifle Energy Cannon Beam Cannon Ballistic Gun Assault Rifle Ballistic Cannon Slug Cannon Impact Weapon Hammer Build | -11 -10 -10 ------- Run | Yrd Mat Min Slots Evolved . | . . . Power . | . . . Propulsion . | . . . Utility . | . . . Weapon . | . . . Parts Attached 22 | 6 7 9 Power 2 | 1 1 . Engine 2 | 1 1 . Core . | . . . Reactor . | . . . Propulsion 6 | 2 1 3 Treads 2 | 2 . . Leg . | . . . Wheel 4 | . 1 3 Hover . | . . . Flight . | . . . Utility 6 | 1 3 2 Device 2 | . 1 1 Storage 2 | 1 1 . Processor . | . . . Hackware . | . . . Protection 2 | . 1 1 Artifact . | . . . Weapon 8 | 2 2 4 Energy Gun . | . . . Energy Cannon 3 | . 1 2 Ballistic Gun 3 | 2 . 1 Ballistic Cannon 1 | . . 1 Launcher . | . . . Special Weapon . | . . . Impact Weapon 1 | . 1 . Slashing Weapon . | . . . Piercing Weapon . | . . . Special Melee Weapon . | . . . Unidentified Prototypes . | . . . Parts Lost 9 | . 3 6 Power 1 | . 1 . Propulsion 4 | . 1 3 Utility 2 | . 1 1 Weapon 2 | . . 2 Highest Loss Streak 3 | . 1 3 To Critical Strikes 1 | . 1 . Average Backups 8 | . 7 13 Power 1 | . 1 3 Propulsion . | . . . Utility 3 | . 3 5 Weapon 2 | . 1 3 Tool/Special . | . . . Unused Backups 11 | . . 11 Power 3 | . . 3 Propulsion 2 | . . 2 Utility 5 | . . 5 Weapon 1 | . . 1 Tool/Special . | . . . Average Slot Usage (%) 98 | . 98 98 Engine 13 | . 13 14 Treads 17 | . 26 . Wheel 10 | . 1 26 Device 11 | . 10 13 Storage 14 | . 14 14 Protection 2 | . 2 . Energy Cannon 11 | . 9 14 Ballistic Gun 13 | . 18 3 Ballistic Cannon 3 | . . 9 Peak Build Rating 12 | 6 10 12 Average Rating 8 | 3 8 10 On Entrance 4 | . 6 8 Avg Prop Armor Cover (%) 11 | . 11 11 Naked Turns . | . . . Heaviest Build 36 | 14 31 36 Greatest Support 40 | 40 40 26 Greatest Overweight (x) 3 | . 1 3 Average Overweight (x) . | . . 1 Largest Inventory Capacity 15 | 8 15 15 Average Capacity 12 | 5 12 15 Most Carried 15 | 3 14 15 Average Carried 8 | . 7 13 Final Capacity 15 | 8 15 15 Final Carried 14 | 1 14 14 Class Distribution -------------------- 100% | Mutant Dominant Class ---------------- Mutant | -10/Materials Mutant | -10/Mines Resources | -11 -10 -10 ----------- Run | Yrd Mat Min Matter Collected 974 | 212 477 285 Remotely . | . . . Salvage Created 912 | . 717 195 Parts 66 | . 48 18 Haulers Intercepted . | . . . Recyclers Shooed 2 | . 2 . Parts Field Recycled . | . . . Retrieved Matter . | . . . Parts Self-Destructed . | . . . Prevented . | . . . Parts Restored . | . . . Kills | -11 -10 -10 ------- Run | Yrd Mat Min Combat Hostiles Destroyed 34 | . 16 18 Guns 12 | . 11 1 Cannons 22 | . 5 17 Classes Destroyed 6 | . 5 1 Recycler 1 | . 1 . Operator 2 | . 2 . Watcher 3 | . 3 . Swarmer 15 | . 6 9 Grunt 10 | . 10 . Assembled 9 | . . 9 Best Kill Streak 6 | . 4 6 Combat Bots Only 6 | . 3 6 Max Kills in Single Turn 2 | . 2 1 Gunslinging . | . . . Exploded . | . . . Melee . | . . . Uniques/NPCs Destroyed . | . . . Combat | -11 -10 -10 -------- Run | Yrd Mat Min Hostile Shots Fired 186 | . 74 112 Missed 42 | . 18 24 Hits 144 | . 56 88 Projectile 144 | . 56 88 Critical Strikes 2 | . 2 . Damage Taken 1478 | . 641 837 Core 251 | . 59 192 Absorbed by Shields . | . . . Redirected to Shielding 2 | . . 2 Core Remaining (%) 100 | 100 . . Volleys Fired 120 | . 68 52 Largest 2 | . 2 2 Hottest 100 | . 80 100 Shots Fired 225 | . 136 89 Gun 117 | . 113 4 Cannon 108 | . 23 85 Launcher . | . . . Special . | . . . Kinetic 151 | . 113 38 Thermal 74 | . 23 51 Explosive . | . . . Electromagnetic . | . . . Robot Hit Streak 8 | . 8 3 Robot Miss Streak 7 | . 6 7 Penetration Max . | . . . Secondary Targets 2 | . 2 . Max Gunslinging Chain 1 | . 1 . Shots Hit Robots 99 | . 66 33 Core Hits 52 | . 32 20 Critical Kills 4 | . . 4 Critical Parts Destroyed 2 | . . 2 Critical Strikes 6 | . . 6 Destroy 6 | . . 6 Melee Attacks 1 | . 1 . Impact 1 | . 1 . Slashing . | . . . Piercing . | . . . Sneak Attacks . | . . . Combat Hostiles . | . . . Follow-up Attacks . | . . . Damage Inflicted 1683 | . 945 738 Guns 715 | . 682 33 Cannons 968 | . 263 705 Explosions . | . . . Melee . | . . . Ramming . | . . . Kinetic 1084 | . 682 402 Thermal 599 | . 263 336 Explosive . | . . . Electromagnetic . | . . . Impact . | . . . Slashing . | . . . Piercing . | . . . Highest Corruption 1 | . 1 1 Average Corruption 1 | . 1 1 Corruption Purged . | . . . Corruption Blocked . | . . . Effects 7 | . 1 6 Message Errors 2 | . . 2 Matter Fused 2 | . 1 1 Energy Discharges 2 | . . 2 Data Loss (major) 1 | . . 1 Overload Shots . | . . . Overflow Damage 26 | . . 26 Projectiles 26 | . . 26 Explosions . | . . . Melee . | . . . Knockbacks 3 | . . 3 Impact . | . . . Kinetic 3 | . . 3 Secondary . | . . . Self-Inflicted Damage . | . . . Shots . | . . . Rammed . | . . . Targets Rammed . | . . . Kicked . | . . . Crushed . | . . . Highest Temperature 234 | . 30 234 Average Temperature 66 | . 6 74 Received Heat Transfer 307 | . 207 100 Effects 1 | . . 1 Interference 1 | . . 1 Siege Activations . | . . . Martial Activations . | . . . Shielding Activations . | . . . Robots Disrupted . | . . . Combat Hostiles . | . . . Robots Corrupted . | . . . Combat Hostiles . | . . . Parts Fried . | . . . Impact Corruptions . | . . . Robots Melted . | . . . Combat Hostiles . | . . . Parts Melted 1 | . . 1 Heat Transferred 1258 | . 555 703 Parts Sabotaged . | . . . Parts Stolen . | . . . Parts Stripped . | . . . Power Chain Reactions . | . . . Alert | -11 -10 -10 ------- Run | Yrd Mat Min Maximum Alert Level . | . . . Low Security (%) 100 | 100 100 100 Level 1 . | . . . Level 2 . | . . . Level 3 . | . . . Level 4 . | . . . Level 5 . | . . . High Security . | . . . Max Security . | . . . Peak Influence 160 | . 160 118 Initial 13 | . . 13 Average 41 | . 51 30 Influence Increases 744 | . 502 242 Destroy 0b10 Robot/C 500 | . 320 180 Destroy 0b10 Robot/NC 30 | . 30 . Destroy Leader 106 | . 76 30 Successful Hack 27 | . 27 . Disable Machine 15 | . 15 . Destroy Structure 21 | . 4 17 Lose Combat Pursuer 45 | . 30 15 Influence Decreases 743 | . 466 277 Entered New Map 23 | . . 23 Time Decay 659 | . 436 223 Lost Part 61 | . 30 31 Squads Dispatched 4 | . 4 . Investigation 2 | . 2 . Extermination . | . . . Reinforcement 2 | . 2 . Assault . | . . . Garrison . | . . . Intercept . | . . . Searches Triggered . | . . . Construction Impeded . | . . . Haulers Reinforced . | . . . Active Scanning Responses . | . . . Cargo Convoy Interrupts . | . . . Stealth | -11 -10 -10 --------- Run | Yrd Mat Min Distress Signals 3 | . 2 1 Communications Jammed . | . . . Distress Signals . | . . . Times Spotted 49 | . 28 21 Peak Tracking Total 6 | . 4 6 Tactical Retreats 5 | . 1 4 Traps | -11 -10 -10 ------- Run | Yrd Mat Min Traps Triggered 4 | . 4 . Indirectly . | . . . Trap Hack Attempts . | . . . Triggered . | . . . Disarmed . | . . . Reprogrammed . | . . . Reused . | . . . Traps Extracted . | . . . Installed . | . . . Triggered . | . . . Machines | -11 -10 -10 ---------- Run | Yrd Mat Min Machines Disabled 1 | . 1 . Max in Single Turn 1 | . 1 . Machines Repaired . | . . . Machines Dismantled . | . . . Machines Sabotaged . | . . . Overloaded Fab Kills . | . . . Hacking | -11 -10 -10 --------- Run | Yrd Mat Min Machines Accessed 9 | . 8 1 Terminals 6 | . 5 1 Fabricators . | . . . Repair Stations 1 | . 1 . Recycling Units 2 | . 2 . Scanalyzers . | . . . Garrison Access . | . . . Total Hacks 19 | . 18 1 Successful 9 | . 9 . Failed 10 | . 9 1 Catastrophic 1 | . . 1 Database Lockouts . | . . . Manual . | . . . Terminals 14 | . 13 1 Fabricators . | . . . Repair Stations 2 | . 2 . Recycling Units 3 | . 3 . Scanalyzers . | . . . Garrison Access . | . . . Terminal Hacks 6 | . 6 . Robot Analysis 1 | . 1 . Prototype ID Bank 1 | . 1 . Branch Access Points 1 | . 1 . Emergency Access Points 1 | . 1 . Hauler Manifests 2 | . 2 . Fabricator Hacks . | . . . Repair Station Hacks 1 | . 1 . Refit 1 | . 1 . Recycling Unit Hacks 2 | . 2 . Report Inventory 2 | . 2 . Scanalyzer . | . . . Garrison Access Hacks . | . . . Unauthorized Hacks . | . . . Terminals . | . . . Fabricators . | . . . Repair Stations . | . . . Recycling Units . | . . . Scanalyzers . | . . . Garrison Access . | . . . Data Cores Recovered . | . . . Used . | . . . Hacking Detections 6 | . 6 . Full Trace Events 2 | . 2 . Feedback Events . | . . . Feedback Blocked . | . . . Robot Schematics Acquired . | . . . Robots Built . | . . . Authchips . | . . . Time . | . . . Total Robot Build Rating . | . . . Part Schematics Acquired . | . . . Parts Built . | . . . Authchips . | . . . Time . | . . . Total Part Build Rating . | . . . Part Studies Acquired . | . . . Parts Repaired . | . . . Time . | . . . Parts Recycled . | . . . Recycled Matter . | . . . Retrieved Matter . | . . . Retrieved Components . | . . . Parts Scanalyzed . | . . . Part Schematics Acquired . | . . . Parts Damaged . | . . . Bothacking | -11 -10 -10 ------------ Run | Yrd Mat Min Used RIF Installer . | . . . Robots Hacked . | . . . Non-combat . | . . . Combat . | . . . Robot Hacks Applied . | . . . Relay Couplers Released . | . . . Fabnet Peak Effective % . | . . . Robots Rewired . | . . . Allies Hacked . | . . . Hacks Repelled . | . . . Allies | -11 -10 -10 -------- Run | Yrd Mat Min Total Allies . | . . . Largest Group . | . . . Highest-Rated Group . | . . . Highest-Rated Ally . | . . . Total Orders . | . . . Ally Attacks . | . . . Total Damage . | . . . Kills . | . . . Allies Corrupted . | . . . Allies Melted . | . . . Intel | -11 -10 -10 ------- Run | Yrd Mat Min Active Infowar (turns) . | . . . Robot Analysis Total 1 | . 1 . Derelict Logs Recovered 1 | . . 1 Drone Launches . | . . . Drone Recoveries . | . . . Exploration | -11 -10 -10 ------------- Run | Yrd Mat Min Turns Passed 2267 | 124 1409 734 Spaces Moved 1323 | 70 728 525 Core 3 | 3 . . Treads 657 | 67 590 . Legs . | . . . Wheels 663 | . 138 525 Hover . | . . . Flight . | . . . Fastest Speed 50 | 50 115 95 Average Speed 132 | 155 151 102 Slowest Speed 160 | 160 160 125 Overloaded Moves . | . . . Propulsion Burnouts . | . . . Robots Hopped . | . . . Potential Cave-ins . | . . . Cave-ins Triggered . | . . . Exploration Rate (%) 59 | 6 97 75 Regions Visited 2 Branch Regions 1 Pre-discovered Areas 1 | . . 1 Known Exits Taken 1 | . 1 . Unknown Exits Taken 1 | 1 . . Scrap Searched 1 | . . 1 Spaces Dug 2 | . 1 1 Terrain Destroyed 18 | . 1 17 Melee 1 | . 1 . Projectile 17 | . . 17 AOE . | . . . Terrain Rammed . | . . . Walls Destroyed . | . . . Machines Disabled . | . . . Actions | -11 -10 -10 --------- Run | Yrd Mat Min Total 1611 | 85 894 632 Wait 108 | 3 67 38 Move 1321 | 69 727 525 Hop . | . . . Pick Up 33 | 7 19 7 Fast Attach 1 | . 1 . Attach 17 | 6 4 7 Detach . | . . . Swap 7 | . 5 2 Drop 3 | . 2 1 Fire 120 | . 68 52 Melee 1 | . 1 . Ram . | . . . Kick . | . . . Crush . | . . . Escape Stasis . | . . . Rewire . | . . . Trap . | . . . Miscellaneous . | . . . Route ------- -11/Scrapyard -10/Materials (discovered 6 exits: [*Mat x3] / *Min x2 / [*Sub]) -10/Mines (discovered 1 exit: [*Sub]) History --------- Turn | Location | Event 31 | -11/Scrapyard | Discovered new exit (range 15) 125 | -11/Scrapyard | Entered Materials 322 | -10/Materials | Build established: Mutant 396 | -10/Materials | Identified exit to Mines 535 | -10/Materials | Discovered new exit (range 3) 682 | -10/Materials | Discovered new exit (range 16) 1358 | -10/Materials | Discovered new exit (range 13) 1481 | -10/Materials | Discovered new exit (range 9) 1534 | -10/Materials | Entered Mines 1560 | -10/Mines | Core integrity fell below 50% 1591 | -10/Mines | Lost 3 parts (1n1u1w) 1660 | -10/Mines | Discovered new exit (range 13) 1745 | -10/Mines | A weapon hastily lodged in a ceiling crevice suddenly fell to the ground 1804 | -10/Mines | Learned location of Recycling (-8) 1861 | -10/Mines | Found a damaged Exp. Sensor Array with a note attached 1863 | -10/Mines | Found Prototype Device 1881 | -10/Mines | Assembled infested the area 1886 | -10/Mines | Assisted by a Guerilla fighting off Assembled 2094 | -10/Mines | Core integrity fell below 20% 2268 | -10/Mines | Destroyed by as-14570 with Assembled F-torch Last Messages --------------- 02192_ as-39348 suffers critical hit (Destroy). 02192_ as-39348 destroyed. 02195_ Slug penetrates Wall. 02201_ R-06 Scavenger destroyed. 02207_ System corrupted: Energy discharge (-100). 02207_ as-60735 destroyed. 02219_ as-42664 destroyed. 02223_ Acquired 57 matter. 02224_ T-07 Excavator is excavating. 02225_ Acquired Com. Wheel. 02232_ Acquired 18 matter. 02234_ U-05 Engineer builds a Wall. 02235_ as-16110 suffers critical hit (Destroy). 02235_ as-16110 destroyed. 02238_ Acquired 16 matter. 02239_ Acquired 6 matter. 02242_ Acquired Wheel. 02243_ Acquired 5 matter. 02265_ Connecting with Terminal... Map ----- +----------------------------------------------------+ | # ###!%#????## #?###"############ ## | | # =!#????#" #?# #? | | # #????##* ##?# ############# #?# | | ## ####?????#[[*##??# #???????????### #?# | | ?## #####????##[ ###?# #????????????### ##?# | | ??# ####### = "### ##?####????####" ##?#! | | ??# ## ## % %! !## ### ##???# ###* | | ??# #???# ##" %|!% #???# ### #" | | ??## #??#????## % !% ! ##### ##" != =* | | ???### ## ## #??#### "" % !% %= ! | | ?????# #?????## ##### !% #"### | | ?????# #######??????## ##???######### ## ###?? | | ????## ######????????####?????????#### ### #??? | | ????# ## ##????????????????????# #?# #??? | | ????# = ! ##???????????????????# ####?## ##??? | | ????# ####????????????????# ##########???? | | ????## [ #????????????????# #???????? | | ?????### #????????????????# #### #???????? | | ???????## #### #????????????????# #??# #####???? | | ????????#####??? #????##########??# #?## ##??? | | ?????????????????#????# *#### #?# ##?? | | ??????????????????????#""" !=%% #?## ### | | ??????????????????????#""" =## ###??# | | ??????????????????????#""" ## ###### | | ??????????????????????# ## # | | ??????????????????????###@#T######## #### ## | | ????????????????????????# ###??????# #??### #? | | ????????????????????????; #????????# #????## ## | | ????????????????????????#!#????????# #?????## # | | ????????????????????????#a#????????# #??????#### | | ????????????????????????#%#????????# #?????????? | | ????????????????????????#a#????????# #######???? | | ????????????????????????#!#????????# #???? | | ????????????????????????#%#????????####### #???? | | ?????????????????????????%???????????????# #???? | | ?????????????????????????!?????########### #??## | | ?????????????????????????#?????# #### | | ???????????????????????????????# ## | | ??????????????????????????????## ####### | | ?????????????????????????????## %####### | | ?????????????????????????????# % #### | | ?????????????????????????????## ] % #### | | ??????????????????????????????####=* | | ?????????????????????????????????## | | ??????????????????????????????????# ## # | | ??????????????????????????????????## ## #### | | ???????????????????????????????????##### ## #??? | | ???????????????????????????????????????# ## ##?# | | ???????????????????????????????????????# ## ### | | ???????????????????????????????????????# # | +----------------------------------------------------+ Best States ------------- Heat Dissipation 39 Energy Generation 10 Energy Capacity 250 Matter Stores 300 Matter Capacity 300 Sight Range 16 Terrain Scan Density 10 Armor Coverage 80 Evasion (%) 41 Recoil Reduction 2 Item Schematics ----------------- None Robot Schematics ------------------ None Fabricated ------------ Nothing Repaired ---------- Nothing Studied --------- None Alien Tech Used ----------------- None Achievements -------------- None Challenges ------------ None Game ------ Seed EmergencyLinkedTelecube Manual? 0 Play Time 00:20:53 Cumulative 45.8 hours Start 2026.09.03 @ 18:50:40 End 2026.09.03 @ 19:21:37 Sessions 1 Manual Loads 0 Difficulty Rogue Special Mode None Game No. 67 Rogue 67 Adventurer 0 Explorer 0 Win Type - Total 0 Types 0/0/0/0/0/0/0/0/0/0 Lore% 27 Gallery% 25 Achievement% 22 Wizard Run 0 Options --------- Layout 2 ASCII 0 Keyboard 0 Movement Mouse Keybinds 0 Fullscreen 1 Font 16/X11CapsBold Map View 50x49 Zoom Use 0% Tactical HUD 1 Map Filters NONE Filters NONE Steam SD RUN: dd825398-d445-4759-b167-836529718ecf